bitfinex-derivatives/quotes_BTCF0:USTF0_20241217
["timestamp","ask_amount","ask_price","bid_price","bid_amount"]
[1734432823679,0.142419,107030.0,107020.0,0.10174869]
[1734432832894,0.0957,107030.0,107020.0,0.10174869]
[1734432833498,0.0625,107030.0,107020.0,0.15677538]
[1734432833694,0.0323,107030.0,107020.0,0.15677538]
[1734432835394,0.0323,107030.0,107020.0,0.16553077]
[1734432835895,0.0323,107030.0,107020.0,0.15677538]
[1734432836090,0.0323,107030.0,107020.0,0.10174869]
[1734432837908,0.0323,107030.0,107020.0,0.10174869]
[1734432838400,0.0323,107030.0,107020.0,0.46254869]
[1734432839995,0.0323,107030.0,107020.0,0.51757538]
[1734432840393,0.0323,107030.0,107020.0,0.46254869]
[1734432840792,0.21928547,107040.0,107020.0,0.51757538]
[1734432840998,0.17256947,107040.0,107030.0,0.46263738]
[1734432841303,0.17256947,107040.0,107030.0,0.47139277]
[1734432841492,0.17256947,107040.0,107030.0,0.46263738]
[1734432841687,0.11261,107050.0,107030.0,0.51766407]
[1734432841888,0.11261,107050.0,107040.0,0.15676638]
[1734432842294,0.0659,107050.0,107040.0,0.15676638]
[1734432842810,0.0659,107050.0,107040.0,0.16552081]
[1734432843109,0.0659,107050.0,107040.0,0.15676638]
[1734432843897,0.0659,107050.0,107040.0,0.16552081]
[1734432844503,0.0659,107050.0,107040.0,0.10173969]
[1734432847394,0.0659,107050.0,107040.0,0.15676638]
[1734432848505,0.0659,107050.0,107040.0,0.46253969]
[1734432848693,0.0659,107050.0,107040.0,0.10173969]
[1734432849297,0.0659,107050.0,107040.0,0.46253969]
[1734432850093,0.43977372,107060.0,107040.0,0.15676638]
[1734432850297,0.43977372,107060.0,107050.0,0.10173569]
[1734432851607,0.07897372,107060.0,107050.0,0.10173569]
[1734432851799,0.07897372,107060.0,107050.0,0.46253569]
[1734432852606,6.672e-05,107060.0,107050.0,0.46253569]
[1734432853699,6.672e-05,107060.0,107050.0,0.51756238]
[1734432853905,6.672e-05,107060.0,107050.0,0.54956238]
[1734432860314,6.672e-05,107060.0,107050.0,0.57046532]
[1734432860511,6.672e-05,107060.0,107050.0,0.51543863]
[1734432861013,0.13382269,107080.0,107060.0,0.046703]
[1734432861214,0.13382269,107080.0,107070.0,0.0467]
[1734432861620,0.49462269,107080.0,107070.0,0.0467]
[1734432862315,0.49462269,107080.0,107060.0,0.046702]
[1734432862316,0.54964938,107080.0,107060.0,0.046702]
[1734432862512,0.53645338,107070.0,107060.0,0.046702]
[1734432862707,0.046709,107060.0,107050.0,0.046708]
[1734432862911,0.54976238,107060.0,107050.0,0.046708]
[1734432863118,0.54976238,107060.0,107040.0,0.08596481]
[1734432863119,0.046709,107050.0,107040.0,0.08596481]
[1734432863309,0.52813569,107050.0,107040.0,0.046711]
[1734432863709,0.52813569,107050.0,107030.0,9.269e-05]
[1734432863914,0.46253969,107040.0,107030.0,0.04680869]
[1734432864307,0.10173969,107040.0,107030.0,0.04680869]
[1734432864713,0.51756638,107040.0,107030.0,0.04680869]
[1734432865915,0.46253969,107040.0,107030.0,0.04680869]
[1734432868915,0.49503969,107040.0,107030.0,0.04680869]
[1734432869817,0.440013,107040.0,107030.0,0.10183538]
[1734432872519,0.079213,107040.0,107030.0,0.10183538]
[1734432875322,0.079213,107040.0,107030.0,0.46263538]
[1734432877013,0.079213,107040.0,107030.0,0.10183538]
[1734432877513,0.079213,107040.0,107030.0,0.46263538]
[1734432881727,0.046713,107040.0,107030.0,0.46263538]
[1734432883026,0.4574,107050.0,107030.0,0.46263538]
[1734432883228,0.504112,107050.0,107040.0,0.10173969]
[1734432883630,0.55913869,107050.0,107040.0,0.046713]
[1734432883935,0.55913869,107050.0,107030.0,0.36089269]
[1734432884122,0.10173969,107040.0,107030.0,0.40760669]
[1734432884323,0.46253969,107040.0,107030.0,0.04680669]
[1734432885132,0.407513,107040.0,107030.0,0.10183338]
[1734432885633,0.46253969,107040.0,107030.0,0.04680669]
[1734432886828,0.407513,107040.0,107030.0,0.04680669]
[1734432887029,0.407513,107040.0,107030.0,0.10183338]
[1734432888337,0.46253969,107040.0,107030.0,0.04680669]
[1734432892840,0.46253969,107040.0,107030.0,0.10183338]
[1734432895023,0.10173969,107040.0,107030.0,0.10183338]
[1734432895535,0.10173969,107040.0,107030.0,0.04680669]
[1734432896330,0.46253969,107040.0,107030.0,0.04680669]
[1734432901643,0.046713,107040.0,107030.0,0.10183338]
[1734432902345,0.046713,107040.0,107030.0,0.04680669]
[1734432902549,0.046713,107040.0,107030.0,0.10183338]
[1734432907049,0.10173969,107040.0,107030.0,0.04680669]
[1734432907349,0.046713,107040.0,107030.0,0.04680669]
[1734432908744,0.046713,107040.0,107030.0,0.10183338]
[1734432909049,0.046713,107040.0,107030.0,0.46263338]
[1734432912437,0.504112,107050.0,107040.0,0.046713]
[1734432912438,0.504111,107050.0,107040.0,0.046713]
[1734432912639,0.504111,107050.0,107040.0,0.10173969]
[1734432913553,0.110511,107050.0,107040.0,0.51756638]
[1734432913854,0.046707,107060.0,107050.0,0.046709]
[1734432914040,0.046707,107060.0,107050.0,0.10173569]
[1734432916849,0.62843473,107070.0,107060.0,0.046705]
[1734432916850,0.67513673,107070.0,107060.0,0.046705]
[1734432917049,0.67513673,107070.0,107040.0,0.44356313]
[1734432917246,0.67513673,107070.0,107060.0,0.05502669]
[1734432917441,0.67513673,107070.0,107060.0,0.10173169]
[1734432917442,0.502602,107070.0,107060.0,0.10173169]
[1734432920258,0.141802,107070.0,107060.0,0.10173169]
[1734432920555,0.19682869,107070.0,107060.0,0.046705]
[1734432920761,0.55762869,107070.0,107060.0,0.046705]
[1734432920966,0.19682869,107070.0,107060.0,0.046705]
[1734432922360,0.141802,107070.0,107060.0,0.10173169]
[1734432922945,0.19682869,107070.0,107060.0,0.10173169]
[1734432923457,0.141802,107070.0,107060.0,0.10173169]
[1734432924952,0.141802,107070.0,107060.0,0.46253169]
[1734432926057,0.141802,107070.0,107060.0,0.47979723]
[1734432932463,0.141802,107070.0,107060.0,0.11899723]
[1734432932881,0.141802,107070.0,107060.0,0.47979723]
[1734432933370,0.141802,107070.0,107060.0,0.11899723]
[1734432933565,0.141802,107070.0,107060.0,0.47979723]
[1734432934577,0.141802,107070.0,107060.0,0.11899723]
[1734432935363,0.502602,107070.0,107060.0,0.11899723]
[1734432935573,0.141802,107070.0,107060.0,0.11899723]
[1734432936271,0.141802,107070.0,107060.0,0.47979723]
[1734432939080,0.19682869,107070.0,107060.0,0.42477054]
[1734432939575,0.19682869,107070.0,107060.0,0.06397054]
[1734432940467,0.141802,107070.0,107060.0,0.11899723]
[1734432941066,0.141802,107070.0,107060.0,0.47979723]
[1734432941671,0.141802,107070.0,107060.0,0.42477054]
[1734432941877,0.141802,107070.0,107060.0,0.47979723]
[1734432944373,0.141802,107070.0,107060.0,0.53482392]
[1734432944571,0.046702,107070.0,107060.0,0.54357835]
[1734432944772,0.3608,107080.0,107060.0,0.57657835]
[1734432944974,0.407496,107080.0,107070.0,0.10172669]
[1734432946182,0.407496,107080.0,107070.0,0.05502669]
[1734432946477,0.407496,107080.0,107070.0,0.10172669]
[1734432947279,0.046696,107080.0,107070.0,0.10172669]
[1734432951073,0.46252269,107080.0,107070.0,0.0467]
[1734432951269,0.0467,107070.0,107060.0,0.47142193]
[1734432951483,0.1079,107070.0,107060.0,0.47142193]
[1734432951674,0.1407,107070.0,107060.0,0.47142193]
[1734432954084,0.19572669,107070.0,107060.0,0.06366162]
[1734432955169,0.1407,107070.0,107060.0,0.11868831]
[1734432959181,0.19572669,107070.0,107050.0,0.3608]
[1734432959376,0.24242669,107070.0,107050.0,1.13367556]
[1734432959570,0.046705,107060.0,107050.0,0.407506]
[1734432959778,0.046705,107060.0,107050.0,0.46253269]
[1734432960271,0.046705,107060.0,107050.0,0.48337274]
[1734432961782,0.046705,107060.0,107050.0,0.50180932]
[1734432962175,0.046705,107060.0,107050.0,0.14100932]
[1734432962383,0.10173169,107060.0,107050.0,0.06754605]
[1734432963172,0.046705,107060.0,107050.0,0.48337274]
[1734432963387,0.046705,107060.0,107050.0,0.42834605]
[1734432963574,0.046705,107060.0,107050.0,0.48337274]
[1734432963979,0.046705,107060.0,107050.0,0.49212717]
[1734432964171,0.046705,107060.0,107050.0,0.13132717]
[1734432964376,0.046705,107060.0,107050.0,0.48337274]
[1734432967691,0.1407,107070.0,107060.0,0.046705]
[1734432967884,0.1407,107070.0,107060.0,0.46253169]
[1734432968791,0.1407,107070.0,107060.0,0.47128612]
[1734432969486,0.1407,107070.0,107060.0,0.10173169]
[1734432969692,0.19572669,107070.0,107060.0,0.046705]
[1734432969891,0.55652669,107070.0,107060.0,0.046705]
[1734432970407,0.55652669,107070.0,107050.0,0.38164005]
[1734432970691,0.10173169,107060.0,107050.0,0.42834605]
[1734432970890,0.046705,107060.0,107050.0,0.42834605]
[1734432971192,0.10173169,107060.0,107050.0,0.42834605]
[1734432971991,0.046705,107060.0,107050.0,0.48337274]
[1734432972582,0.046705,107060.0,107050.0,0.51397274]
[1734432979394,0.046705,107060.0,107050.0,0.52272717]
[1734432979985,0.19572669,107070.0,107050.0,0.52272717]
[1734432980487,0.046705,107060.0,107050.0,0.16192617]
[1734432980687,0.046705,107060.0,107050.0,0.51397174]
[1734432983201,0.046705,107060.0,107050.0,0.15317174]
[1734432983588,0.10173169,107060.0,107050.0,0.06754505]
[1734432984090,0.046705,107060.0,107050.0,0.06754505]
[1734432984793,0.046705,107060.0,107050.0,0.12257174]
[1734432990011,0.10173169,107060.0,107050.0,0.06754505]
[1734432990404,0.046705,107060.0,107050.0,0.12257174]
[1734432991810,0.10173169,107060.0,107050.0,0.06754505]
[1734432992005,0.46253169,107060.0,107050.0,0.06754505]
[1734432992513,0.10173169,107060.0,107050.0,0.06754505]
[1734432992699,0.10173169,107060.0,107050.0,0.046705]
[1734432994207,0.46253169,107060.0,107050.0,0.046705]
[1734432994412,0.407505,107060.0,107050.0,0.10173169]
[1734432994705,0.46253169,107060.0,107050.0,0.046705]
[1734432995907,0.046705,107060.0,107050.0,0.046705]
[1734432999295,0.046705,107060.0,107050.0,0.10173169]
[1734433000307,0.046705,107060.0,107050.0,0.13503169]
[1734433000608,0.046705,107060.0,107050.0,0.49583169]
[1734433001411,0.140702,107070.0,107060.0,0.046705]
[1734433001610,0.140702,107070.0,107060.0,0.10173169]
[1734433002507,0.046702,107070.0,107060.0,0.15675838]
[1734433002707,0.407497,107080.0,107070.0,0.0467]
[1734433002897,0.407497,107080.0,107070.0,0.10172669]
[1734433003598,0.407497,107080.0,107070.0,0.1018061]
[1734433003911,0.110694,107090.0,107080.0,0.046696]
[1734433004110,0.110694,107090.0,107080.0,0.10172269]
[1734433004715,0.16572069,107090.0,107080.0,0.046696]
[1734433005510,0.110694,107090.0,107080.0,0.10172269]
[1734433011811,0.54689246,107100.0,107080.0,0.10172269]
[1734433012017,0.53855577,107100.0,107090.0,0.10171869]
[1734433012221,0.17775577,107100.0,107090.0,0.10171869]
[1734433014212,0.17775577,107100.0,107090.0,0.46251869]
[1734433014417,0.14675577,107100.0,107090.0,0.46251869]
[1734433015516,0.10006577,107100.0,107090.0,0.46251869]
[1734433016021,0.14675277,107100.0,107090.0,0.46251869]
[1734433016221,0.14675277,107100.0,107090.0,0.49381869]
[1734433018921,0.10006577,107100.0,107090.0,0.49381869]
[1734433019222,0.10006577,107100.0,107090.0,0.51504086]
[1734433019619,0.00517868,107100.0,107090.0,0.51504086]
[1734433021410,0.00517868,107100.0,107090.0,0.42424465]
[1734433021718,0.00517868,107100.0,107090.0,0.50343665]
[1734433027017,0.00517868,107100.0,107090.0,0.35350996]
[1734433027229,0.00517868,107100.0,107090.0,0.40853665]
[1734433028426,0.00517868,107100.0,107090.0,0.44083665]
[1734433029122,0.078379,107120.0,107100.0,0.046686]
[1734433029321,0.111079,107120.0,107110.0,0.10170969]
[1734433029620,0.16610569,107120.0,107110.0,0.046683]
[1734433029923,0.111079,107120.0,107110.0,0.046683]
[1734433030123,0.111079,107120.0,107110.0,0.04675424]
[1734433032125,0.111079,107120.0,107110.0,0.10178093]
[1734433033028,0.407477,107130.0,107120.0,0.046678]
[1734433033221,0.503477,107130.0,107120.0,0.10170469]
[1734433038545,0.142677,107130.0,107120.0,0.10170469]
[1734433039148,0.142677,107130.0,107120.0,0.15673138]
[1734433039352,0.142677,107130.0,107120.0,0.10170469]
[1734433040045,0.142677,107130.0,107120.0,0.046678]
[1734433040449,0.142677,107130.0,107120.0,0.10170469]
[1734433045254,0.142677,107130.0,107120.0,0.046678]
[1734433045440,0.142677,107130.0,107120.0,0.10170469]
[1734433051259,0.142677,107130.0,107120.0,0.15673138]
[1734433051459,0.096,107130.0,107120.0,0.15673138]
[1734433052062,0.142676,107130.0,107120.0,0.15673138]
[1734433052651,0.110076,107130.0,107120.0,0.15673138]
[1734433052852,0.110076,107130.0,107120.0,0.16548581]
[1734433053054,0.110076,107130.0,107120.0,0.52628581]
[1734433053256,0.110076,107130.0,107120.0,0.51753138]
[1734433055461,0.110076,107130.0,107120.0,0.53664557]
[1734433057355,0.046676,107130.0,107120.0,0.53664557]
[1734433057559,0.046676,107130.0,107120.0,0.56944557]
[1734433059160,0.40747,107140.0,107120.0,0.61612257]
[1734433059361,0.046676,107130.0,107120.0,0.56109588]
[1734433061364,0.04667,107140.0,107130.0,0.046674]
[1734433061664,0.04667,107140.0,107130.0,0.10170069]
[1734433064270,0.04667,107140.0,107130.0,0.046674]
[1734433064469,0.04667,107140.0,107130.0,0.10170069]
[1734433064969,0.04667,107140.0,107130.0,0.046674]
[1734433068260,0.10169669,107140.0,107130.0,0.06539473]
[1734433068769,0.04667,107140.0,107130.0,0.06539473]
[1734433072661,0.40747,107140.0,107130.0,0.06539473]
[1734433072867,0.46249669,107140.0,107130.0,0.01872073]
[1734433073066,0.46249669,107140.0,107120.0,0.12081688]
[1734433073269,0.139174,107130.0,107120.0,0.12081688]
[1734433077778,0.139174,107130.0,107120.0,0.1394828]
[1734433079577,0.139174,107130.0,107120.0,0.08445611]
[1734433079794,0.139174,107130.0,107120.0,0.1394828]
[1734433081085,0.139174,107130.0,107120.0,0.14822963]
[1734433081292,0.09718573,107130.0,107120.0,0.14822963]
[1734433082889,0.45798573,107130.0,107120.0,0.09320294]
[1734433083086,0.45798573,107130.0,107120.0,0.14822963]
[1734433084685,0.45798573,107130.0,107120.0,0.1394828]
[1734433086904,0.45798573,107130.0,107120.0,0.06534192]
[1734433087094,0.45798573,107130.0,107120.0,0.12036861]
[1734433090005,0.51301242,107130.0,107120.0,0.06534192]
[1734433090606,0.45798573,107130.0,107120.0,0.06534192]
[1734433090793,0.45798573,107130.0,107120.0,0.12036861]
[1734433095805,0.45798573,107130.0,107120.0,0.07369261]
[1734433097807,0.45798573,107130.0,107120.0,0.01866592]
[1734433098004,0.45798573,107130.0,107120.0,0.00874683]
[1734433098400,0.45798573,107130.0,107120.0,0.06377352]
[1734433098601,0.45798573,107130.0,107110.0,0.04675124]
[1734433098602,0.55968642,107130.0,107110.0,0.04675124]
[1734433098796,0.046679,107120.0,107110.0,0.11052476]
[1734433099004,0.046679,107120.0,107110.0,0.10177793]
[1734433099209,0.407479,107120.0,107110.0,0.10177793]
[1734433099707,0.046679,107120.0,107110.0,0.10177793]
[1734433099913,0.046679,107120.0,107110.0,0.04675124]
[1734433100206,0.046679,107120.0,107110.0,0.10177793]
[1734433100401,0.046679,107120.0,107110.0,0.11872617]
[1734433100607,0.046679,107120.0,107110.0,0.127473]
[1734433103010,0.046679,107120.0,107110.0,0.488273]
[1734433108609,0.046679,107120.0,107110.0,0.47952617]
[1734433109010,0.046679,107120.0,107110.0,0.42449948]
[1734433109313,0.046679,107120.0,107110.0,0.47952617]
[1734433111916,0.046679,107120.0,107110.0,0.11872617]
[1734433112114,0.046679,107120.0,107110.0,0.47952617]
[1734433115414,0.09718873,107130.0,107120.0,0.046679]
[1734433115620,0.09718873,107130.0,107120.0,0.10170569]
[1734433115915,0.046677,107130.0,107120.0,0.10170569]
[1734433116119,0.046677,107130.0,107120.0,0.13410569]
[1734433118703,0.69821641,107140.0,107120.0,0.29083807]
[1734433118704,0.56471972,107140.0,107120.0,0.29083807]
[1734433119009,0.17241972,107140.0,107130.0,0.51752738]
[1734433119514,0.17241972,107140.0,107130.0,0.46250069]
[1734433120715,0.04675309,107150.0,107140.0,0.04667]
[1734433120911,0.04675309,107150.0,107140.0,0.51752338]
[1734433121112,0.04675309,107150.0,107140.0,0.18672338]
[1734433122219,0.04675309,107150.0,107140.0,0.13169669]
[1734433122418,0.04675309,107150.0,107140.0,0.18672338]
[1734433124211,8.509e-05,107150.0,107140.0,0.18672338]
[1734433125409,8.509e-05,107150.0,107140.0,0.20387314]
[1734433127613,0.04675009,107150.0,107140.0,0.20387314]
[1734433129911,0.04675009,107150.0,107140.0,0.56467314]
[1734433132723,0.3921,107160.0,107140.0,0.56467314]
[1734433132919,0.3921,107160.0,107150.0,0.05502669]
[1734433133215,0.438761,107160.0,107150.0,0.10169169]
[1734433133613,0.438761,107160.0,107150.0,0.05502669]
[1734433133920,0.485426,107160.0,107150.0,0.10169169]
[1734433142628,0.485426,107160.0,107150.0,0.046665]
[1734433142629,0.54045269,107160.0,107150.0,0.046665]
[1734433142824,0.046665,107150.0,107140.0,0.06381976]
[1734433143023,0.470065,107150.0,107140.0,0.06381976]
[1734433143730,0.470065,107150.0,107140.0,0.11884645]
[1734433144426,0.109265,107150.0,107140.0,0.11884645]
[1734433146031,0.109265,107150.0,107140.0,0.17387314]
[1734433147020,0.109265,107150.0,107140.0,0.11884645]
[1734433147734,0.109265,107150.0,107140.0,0.17387314]
[1734433148123,0.109265,107150.0,107140.0,0.11884645]
[1734433148528,0.470065,107150.0,107140.0,0.01714976]
[1734433148725,0.470065,107150.0,107130.0,0.73342131]
[1734433149034,0.40747,107140.0,107130.0,0.62297697]
[1734433149225,0.516732,107150.0,107130.0,0.63172262]
[1734433149423,0.470065,107150.0,107140.0,0.61367804]
[1734433149623,0.470065,107150.0,107140.0,0.62242369]
[1734433150024,0.470065,107150.0,107140.0,0.61367804]
[1734433151137,0.470065,107150.0,107140.0,0.05502669]
[1734433151434,0.470065,107150.0,107140.0,0.61367804]
[1734433151934,0.470065,107150.0,107140.0,0.62242442]
[1734433152429,0.470065,107150.0,107140.0,1.2371422]
[1734433153333,0.470065,107150.0,107140.0,1.22839582]
[1734433153636,0.470065,107150.0,107140.0,0.62242442]
[1734433154038,0.470065,107150.0,107140.0,1.2838122]
[1734433154235,0.109265,107150.0,107140.0,1.2838122]
[1734433154538,0.109265,107150.0,107140.0,1.28375676]
[1734433155335,0.109265,107150.0,107140.0,1.33878345]
[1734433155838,0.109265,107150.0,107140.0,1.14098754]
[1734433156029,0.109265,107150.0,107140.0,0.78018754]
[1734433156230,0.109265,107150.0,107140.0,1.14098754]
[1734433156735,0.109265,107150.0,107140.0,1.07603835]
[1734433157038,0.109265,107150.0,107140.0,0.96598497]
[1734433157227,0.109265,107150.0,107140.0,1.07603835]
[1734433158936,0.109265,107150.0,107140.0,0.51752338]
[1734433161644,0.046665,107150.0,107140.0,0.51752338]
[1734433161832,0.046665,107150.0,107140.0,0.54822338]
[1734433162442,0.046665,107150.0,107140.0,0.58052338]
[1734433168839,0.046665,107150.0,107140.0,1.13876271]
[1734433169549,0.046665,107150.0,107140.0,0.58052338]
[1734433172148,0.046665,107150.0,107140.0,0.21972338]
[1734433172446,0.046665,107150.0,107140.0,0.58052338]
[1734433174750,0.046665,107150.0,107140.0,0.58926976]
[1734433175452,0.046665,107150.0,107140.0,1.14739017]
[1734433175953,0.046665,107150.0,107140.0,1.76210795]
[1734433176347,0.046665,107150.0,107140.0,1.14739017]
[1734433176842,0.046665,107150.0,107140.0,1.13864379]
[1734433177547,0.046665,107150.0,107140.0,0.58052338]
[1734433178746,0.046665,107150.0,107140.0,0.52549669]
[1734433178950,0.407464,107160.0,107140.0,0.57216669]
[1734433179249,0.407464,107160.0,107150.0,0.046665]
[1734433182754,0.407464,107160.0,107150.0,0.10169169]
[1734433183147,0.046664,107160.0,107150.0,0.10169169]
[1734433183651,0.046664,107160.0,107150.0,0.046665]
[1734433185461,0.046664,107160.0,107150.0,0.10169169]
[1734433186463,0.046664,107160.0,107150.0,0.046665]
[1734433187748,0.046664,107160.0,107150.0,0.05541138]
[1734433188454,0.046664,107160.0,107150.0,0.046665]
[1734433188653,0.046664,107160.0,107150.0,0.06200418]
[1734433191754,0.046664,107160.0,107150.0,0.11703087]
[1734433194461,0.046664,107160.0,107150.0,0.06200418]
[1734433196561,0.046664,107160.0,107150.0,0.11703087]
[1734433196763,0.046664,107160.0,107150.0,0.47783087]
[1734433197063,0.046664,107160.0,107150.0,0.06200418]
[1734433200863,0.046664,107160.0,107150.0,0.046665]
[1734433201363,0.407464,107160.0,107150.0,0.046665]
[1734433202271,0.046664,107160.0,107150.0,0.046665]
[1734433203062,0.046664,107160.0,107150.0,0.10169169]
[1734433203460,0.046664,107160.0,107150.0,0.046665]
[1734433204564,0.503059,107170.0,107150.0,0.05541138]
[1734433204762,0.046663,107160.0,107150.0,0.05540738]
[1734433204959,0.046663,107160.0,107150.0,0.046661]
[1734433206969,0.046663,107160.0,107150.0,0.10168769]
[1734433207874,0.046663,107160.0,107150.0,0.046661]
[1734433210370,0.046663,107160.0,107150.0,0.10168769]
[1734433214959,0.046663,107160.0,107150.0,0.61369129]
[1734433215165,0.046663,107160.0,107150.0,0.66871798]
[1734433216865,0.046663,107160.0,107150.0,0.05540738]
[1734433217062,0.46248969,107160.0,107150.0,1.22833187]
[1734433217672,0.407463,107160.0,107150.0,1.22833187]
[1734433217871,0.407463,107160.0,107150.0,0.66864078]
[1734433218477,0.407463,107160.0,107150.0,0.10168769]
[1734433221082,0.407463,107160.0,107150.0,0.046661]
[1734433221571,0.46248969,107160.0,107150.0,0.046661]
[1734433222379,0.407463,107160.0,107150.0,0.046661]
[1734433226778,0.407463,107160.0,107150.0,0.10168769]
[1734433227576,0.407463,107160.0,107150.0,0.11043407]
[1734433227778,0.407463,107160.0,107150.0,0.66864078]
[1734433228578,0.407463,107160.0,107150.0,0.11043407]
[1734433229375,0.046663,107160.0,107150.0,0.11043407]
[1734433229777,0.407463,107160.0,107150.0,0.10168769]
[1734433237281,0.407463,107160.0,107150.0,0.00874638]
[1734433237282,0.46248969,107160.0,107150.0,0.00874638]
[1734433238083,0.407463,107160.0,107150.0,0.06377307]
[1734433238283,0.407463,107160.0,107150.0,0.05502669]
[1734433238585,0.046665,107150.0,107140.0,0.71488354]
[1734433238790,0.046665,107150.0,107140.0,0.68398354]
[1734433239793,0.078365,107150.0,107140.0,0.68398354]
[1734433240999,0.078365,107150.0,107140.0,1.29870132]
[1734433241991,0.02589196,107150.0,107140.0,0.7406888]
[1734433242796,0.07255696,107150.0,107140.0,0.73194242]
[1734433243085,0.43335696,107150.0,107140.0,0.73194242]
[1734433243497,0.49705696,107150.0,107140.0,0.67515475]
[1734433244594,0.55208365,107150.0,107140.0,1.23484584]
[1734433244790,0.55208365,107150.0,107140.0,1.24359194]
[1734433245293,0.55208365,107150.0,107140.0,1.24367578]
[1734433245495,0.55208365,107150.0,107140.0,0.628958]
[1734433246503,0.55208365,107150.0,107140.0,0.6202119]
[1734433246802,0.55208365,107150.0,107140.0,0.67523859]
[1734433246990,0.55208365,107150.0,107140.0,0.68398469]
[1734433247192,0.49705696,107150.0,107140.0,0.68398469]
[1734433247502,0.49705696,107150.0,107140.0,0.6202119]
[1734433247702,0.49705696,107150.0,107140.0,0.628958]
[1734433248099,0.49705696,107150.0,107140.0,1.24367578]
[1734433248299,0.49705696,107150.0,107140.0,0.628958]
[1734433249401,0.49705696,107150.0,107140.0,1.24367578]
[1734433249696,0.49705696,107150.0,107140.0,0.628958]
[1734433250293,0.49705696,107150.0,107140.0,0.6202119]
[1734433250494,0.49705696,107150.0,107140.0,0.06219795]
[1734433252099,0.49705696,107150.0,107140.0,0.582291]
[1734433252607,0.49705696,107150.0,107140.0,0.02427705]
[1734433252794,0.49705696,107150.0,107140.0,0.582291]
[1734433253194,0.49705696,107150.0,107140.0,0.68398769]
[1734433255094,0.49705696,107150.0,107140.0,0.67524159]
[1734433255292,0.49705696,107150.0,107140.0,0.11722764]
[1734433257500,0.49705696,107150.0,107140.0,0.06220095]
[1734433257704,0.49705696,107150.0,107140.0,0.6202149]
[1734433257904,0.55208365,107150.0,107140.0,0.628961]
[1734433258307,0.55208365,107150.0,107140.0,0.6202149]
[1734433259910,0.55208365,107150.0,107140.0,0.628961]
[1734433260408,0.04667,107140.0,107130.0,0.56676005]
[1734433260595,0.46249669,107140.0,107130.0,0.55801395]
[1734433261603,0.046674,107130.0,107120.0,0.68593251]
[1734433261811,0.46250069,107130.0,107120.0,0.68593251]
[1734433262311,0.46250069,107130.0,107120.0,0.69467861]
[1734433262504,0.407474,107130.0,107120.0,0.68593251]
[1734433263015,0.407474,107130.0,107120.0,0.7409592]
[1734433263209,0.407474,107130.0,107120.0,0.65503251]
[1734433263210,0.46250069,107130.0,107120.0,0.65503251]
[1734433263398,0.46250069,107130.0,107120.0,0.09701856]
[1734433263593,0.46250069,107130.0,107120.0,0.72048244]
[1734433263799,0.46250069,107130.0,107120.0,1.27834968]
[1734433264097,0.10170069,107130.0,107120.0,1.27834968]
[1734433264405,0.10170069,107130.0,107120.0,0.68762257]
[1734433264608,0.046674,107130.0,107120.0,0.18478202]
[1734433264799,0.046674,107130.0,107120.0,0.7994998]
[1734433265002,0.046674,107130.0,107120.0,0.78968966]
[1734433267104,0.046674,107130.0,107120.0,0.79843657]
[1734433267809,0.046674,107130.0,107120.0,1.15923657]
[1734433268211,0.046674,107130.0,107120.0,0.54558283]
[1734433269306,0.046674,107130.0,107120.0,0.60060952]
[1734433269511,0.046674,107130.0,107120.0,0.54558283]
[1734433271797,0.046674,107130.0,107120.0,1.15946579]
[1734433272700,0.046674,107130.0,107120.0,1.71759931]
[1734433272901,0.046674,107130.0,107120.0,1.10371635]
[1734433273107,0.046674,107130.0,107120.0,1.09496944]
[1734433275003,0.046674,107130.0,107120.0,0.53683592]
[1734433275206,0.046674,107130.0,107120.0,1.15946579]
[1734433275407,0.046674,107130.0,107120.0,1.09502439]
[1734433276005,0.046674,107130.0,107120.0,0.99303296]
[1734433277111,0.046674,107130.0,107120.0,1.01144874]
[1734433279908,0.046674,107130.0,107120.0,0.45326027]
[1734433280109,0.046674,107130.0,107120.0,1.08576782]
[1734433280414,0.046674,107130.0,107120.0,0.48063177]
[1734433282016,0.046674,107130.0,107120.0,1.09471831]
[1734433282511,0.046674,107130.0,107120.0,1.05860291]
[1734433282707,0.046674,107130.0,107120.0,1.24523771]
[1734433283306,0.046674,107130.0,107120.0,1.3002644]
[1734433283713,0.10170069,107130.0,107120.0,1.24523771]
[1734433283916,0.10170069,107130.0,107120.0,1.23536003]
[1734433284215,0.19740069,107130.0,107120.0,1.59821947]
[1734433284411,0.19740069,107130.0,107120.0,0.98413293]
[1734433285216,0.55820069,107130.0,107120.0,0.80996773]
[1734433285418,0.55820069,107130.0,107120.0,0.62333293]
[1734433287216,0.55820069,107130.0,107120.0,1.12568805]
[1734433287810,0.55820069,107130.0,107120.0,0.06509178]
[1734433288010,0.55820069,107130.0,107120.0,0.01841578]
[1734433288216,0.046679,107120.0,107110.0,0.58200736]
[1734433288405,0.46250569,107120.0,107110.0,0.60499339]
[1734433288606,0.46250569,107120.0,107110.0,0.6137403]
[1734433289017,0.51753238,107120.0,107110.0,0.6137403]
[1734433289213,0.46250569,107120.0,107110.0,1.21907993]
[1734433289415,0.51753238,107120.0,107110.0,0.54908756]
[1734433290012,0.46250569,107120.0,107110.0,0.06537244]
[1734433290215,0.51753238,107120.0,107110.0,0.06537244]
[1734433292214,0.51753238,107120.0,107110.0,0.01869144]
[1734433293520,0.51753238,107120.0,107110.0,7.124e-05]
[1734433295220,0.53674561,107120.0,107110.0,7.124e-05]
[1734433296725,0.17594561,107120.0,107110.0,7.124e-05]
[1734433297041,0.10170569,107120.0,107110.0,7.124e-05]
[1734433297231,0.46250569,107120.0,107110.0,7.124e-05]
[1734433297718,0.10170569,107120.0,107110.0,7.124e-05]
[1734433297924,0.46250569,107120.0,107110.0,0.04675424]
[1734433299422,0.46250569,107120.0,107110.0,7.124e-05]
[1734433300219,0.46250569,107120.0,107110.0,0.50240656]
[1734433300422,0.51753238,107120.0,107110.0,0.50240656]
[1734433300626,0.46250569,107120.0,107110.0,0.50240656]
[1734433300822,0.46250569,107120.0,107110.0,7.124e-05]
[1734433302425,0.49560569,107120.0,107110.0,7.124e-05]
[1734433302817,0.49560569,107120.0,107110.0,0.55831239]
[1734433303017,0.55063238,107120.0,107110.0,0.50240656]
[1734433305926,0.49560569,107120.0,107110.0,0.50240656]
[1734433307432,0.55063238,107120.0,107110.0,0.50240656]
[1734433308535,0.55063238,107120.0,107110.0,7.124e-05]
[1734433309126,0.440579,107120.0,107110.0,0.04675424]
[1734433309528,0.49560569,107120.0,107110.0,0.04675424]
[1734433311637,0.49560569,107120.0,107110.0,7.124e-05]